[Event "Titled Tuesday Blitz November 22 Late 2022"]
[White "Bilan, Danila"]
[Black "De Souza, Cristiano Gomes"]
[WhiteFideId "24161918"]
[BlackFideId "2151758"]
[WhiteElo "2173"]
[BlackElo "2068"]
[Result "0-1"]
[Round "04"]
[TimeControl "180+1"]
[Date "2022.11.23"]
[WhiteClock "0:00:02"]
[BlackClock "0:00:35"]

1. d4 {[%clk 0:02:59]}  Nf6 {[%clk 0:02:59]} 2. Nf3 {[%clk 0:02:59]}  g6 {[%clk 0:02:59]} 3. Bg5 {[%clk 0:02:56]}  Bg7 {[%clk 0:02:58]} 4. c3 {[%clk 0:02:56]}  d6 {[%clk 0:02:56]} 5. Nbd2 {[%clk 0:02:56]}  h6 {[%clk 0:02:55]} 6. Bh4 {[%clk 0:02:54]}  g5 {[%clk 0:02:54]} 7. Bg3 {[%clk 0:02:51]}  Nh5 {[%clk 0:02:53]} 8. e4 {[%clk 0:02:51]}  e6 {[%clk 0:02:53]} 9. Bc4 {[%clk 0:02:51]}  Qe7 {[%clk 0:02:53]} 10. O-O {[%clk 0:02:38]}  Nd7 {[%clk 0:02:52]} 11. a4 {[%clk 0:02:37]}  Nf8 {[%clk 0:02:46]} 12. e5 {[%clk 0:02:29]}  d5 {[%clk 0:02:45]} 13. Bb5+ {[%clk 0:02:25]}  c6 {[%clk 0:02:45]} 14. Bd3 {[%clk 0:02:24]}  Ng6 {[%clk 0:02:45]} 15. Re1 {[%clk 0:02:14]}  Bd7 {[%clk 0:02:43]} 16. a5 {[%clk 0:02:14]}  Nxg3 {[%clk 0:02:37]} 17. hxg3 {[%clk 0:02:13]}  O-O-O {[%clk 0:02:35]} 18. Nb3 {[%clk 0:02:07]}  h5 {[%clk 0:02:29]} 19. Nc5 {[%clk 0:02:05]}  Be8 {[%clk 0:02:26]} 20. Qb3 {[%clk 0:02:00]}  h4 {[%clk 0:02:13]} 21. Nxg5 {[%clk 0:01:45]}  hxg3 {[%clk 0:02:03]} 22. fxg3 {[%clk 0:01:42]}  Rh5 {[%clk 0:01:55]} 23. Nf3 {[%clk 0:01:33]}  Nxe5 {[%clk 0:01:51]} 24. Nxe5 {[%clk 0:00:44]}  Bxe5 {[%clk 0:01:42]} 25. Nxb7 {[%clk 0:00:21]}  Bxg3 {[%clk 0:01:24]} 26. Nxd8 {[%clk 0:00:12]}  Qh4 {[%clk 0:00:54]} 27. Kf1 {[%clk 0:00:09]}  Qh1+ {[%clk 0:00:52]} 28. Ke2 {[%clk 0:00:09]}  Qxg2+ {[%clk 0:00:52]} 29. Kd1 {[%clk 0:00:10]}  Kxd8 {[%clk 0:00:48]} 30. Be2 {[%clk 0:00:07]}  Bxe1 {[%clk 0:00:46]} 31. Qb8+ {[%clk 0:00:04]}  Ke7 {[%clk 0:00:44]} 32. Qc7+ {[%clk 0:00:04]}  Kf8 {[%clk 0:00:43]} 33. Qd6+ {[%clk 0:00:05]}  Kg7 {[%clk 0:00:42]} 34. Kxe1 {[%clk 0:00:02]}  Rh1+ {[%clk 0:00:39]} 35. Kd2 {[%clk 0:00:02]}  Qg5+ {[%clk 0:00:35]} 0-1


[Site "https://www.chess.com"]

[Event "Titled Tuesday Blitz November 22 Late 2022"]
[White "Bobadilla Viera, Jorge Samuel"]
[Black "Martinez Alcantara, Jose Eduardo"]
[WhiteFideId "3906353"]
[BlackFideId "3805662"]
[WhiteElo "2212"]
[BlackElo "2705"]
[Result "0-1"]
[Round "04"]
[TimeControl "180+1"]
[Date "2022.11.22"]
[WhiteClock "0:00:04"]
[BlackClock "0:00:49"]

1. e4 {[%clk 0:03:00]}  c5 {[%clk 0:02:59]} 2. Nf3 {[%clk 0:03:01]}  d6 {[%clk 0:02:59]} 3. d4 {[%clk 0:03:01]}  cxd4 {[%clk 0:03:00]} 4. Nxd4 {[%clk 0:03:02]}  a6 {[%clk 0:03:01]} 5. Nc3 {[%clk 0:03:02]}  e6 {[%clk 0:03:02]} 6. Be2 {[%clk 0:02:58]}  b5 {[%clk 0:03:02]} 7. f4 {[%clk 0:02:56]}  Bb7 {[%clk 0:03:02]} 8. Bf3 {[%clk 0:02:56]}  Nd7 {[%clk 0:03:02]} 9. a4 {[%clk 0:02:54]}  b4 {[%clk 0:03:02]} 10. Nce2 {[%clk 0:02:53]}  Ngf6 {[%clk 0:02:56]} 11. Ng3 {[%clk 0:02:47]}  Qc7 {[%clk 0:02:53]} 12. O-O {[%clk 0:02:45]}  e5 {[%clk 0:02:45]} 13. Nb3 {[%clk 0:02:34]}  g6 {[%clk 0:02:42]} 14. f5 {[%clk 0:02:30]}  Be7 {[%clk 0:02:42]} 15. Bh6 {[%clk 0:02:28]}  Rg8 {[%clk 0:02:41]} 16. fxg6 {[%clk 0:02:26]}  hxg6 {[%clk 0:02:40]} 17. Qd2 {[%clk 0:02:26]}  a5 {[%clk 0:02:38]} 18. Be3 {[%clk 0:02:19]}  Nb6 {[%clk 0:02:28]} 19. Qf2 {[%clk 0:02:08]}  Nc4 {[%clk 0:02:26]} 20. Bc1 {[%clk 0:02:08]}  Qb6 {[%clk 0:02:23]} 21. Qxb6 {[%clk 0:02:06]}  Nxb6 {[%clk 0:02:24]} 22. Nd2 {[%clk 0:01:58]}  Rc8 {[%clk 0:02:22]} 23. Bd1 {[%clk 0:01:56]}  Nfd7 {[%clk 0:02:17]} 24. Nb3 {[%clk 0:01:56]}  Nc4 {[%clk 0:02:10]} 25. Be2 {[%clk 0:01:53]}  Bd8 {[%clk 0:02:10]} 26. Bd3 {[%clk 0:01:47]}  Bb6+ {[%clk 0:02:07]} 27. Kh1 {[%clk 0:01:47]}  Rh8 {[%clk 0:02:04]} 28. Ne2 {[%clk 0:01:41]}  Ke7 {[%clk 0:01:59]} 29. h3 {[%clk 0:01:36]}  d5 {[%clk 0:01:56]} 30. Ng3 {[%clk 0:01:32]}  Nd6 {[%clk 0:01:50]} 31. Nd2 {[%clk 0:01:12]}  Nc5 {[%clk 0:01:37]} 32. exd5 {[%clk 0:01:05]}  Bxd5 {[%clk 0:01:37]} 33. Kh2 {[%clk 0:01:00]}  f5 {[%clk 0:01:31]} 34. Be2 {[%clk 0:00:49]}  e4 {[%clk 0:01:30]} 35. c3 {[%clk 0:00:43]}  bxc3 {[%clk 0:01:23]} 36. bxc3 {[%clk 0:00:43]}  Ne6 {[%clk 0:01:23]} 37. Ba3 {[%clk 0:00:40]}  Rxc3 {[%clk 0:01:21]} 38. Bb2 {[%clk 0:00:39]}  Bd4 {[%clk 0:01:18]} 39. Bxc3 {[%clk 0:00:37]}  Bxc3 {[%clk 0:01:19]} 40. Rad1 {[%clk 0:00:37]}  Be5 {[%clk 0:01:19]} 41. Ba6 {[%clk 0:00:26]}  Ra8 {[%clk 0:01:07]} 42. Be2 {[%clk 0:00:24]}  Rc8 {[%clk 0:01:07]} 43. Rc1 {[%clk 0:00:20]}  Rb8 {[%clk 0:01:07]} 44. Rb1 {[%clk 0:00:20]}  Rd8 {[%clk 0:01:08]} 45. Rb6 {[%clk 0:00:18]}  Rc8 {[%clk 0:01:06]} 46. Nb3 {[%clk 0:00:16]}  Rc3 {[%clk 0:01:05]} 47. Nxa5 {[%clk 0:00:13]}  Bxg3+ {[%clk 0:01:05]} 48. Kh1 {[%clk 0:00:14]}  Be5 {[%clk 0:00:57]} 49. Bb5 {[%clk 0:00:11]}  e3 {[%clk 0:00:54]} 50. Re1 {[%clk 0:00:11]}  f4 {[%clk 0:00:53]} 51. Nc6+ {[%clk 0:00:10]}  Kf6 {[%clk 0:00:51]} 52. Nxe5 {[%clk 0:00:08]}  Kxe5 {[%clk 0:00:52]} 53. Bd7 {[%clk 0:00:07]}  Nc5 {[%clk 0:00:48]} 54. Bg4 {[%clk 0:00:06]}  Nxa4 {[%clk 0:00:48]} 55. Rb4 {[%clk 0:00:05]}  Nc5 {[%clk 0:00:48]} 56. Kg1 {[%clk 0:00:04]}  Nd3 {[%clk 0:00:49]} 0-1


[Site "https://www.chess.com"]

[Event "Titled Tuesday Blitz November 22 Late 2022"]
[White "Bortnyk, Olexandr"]
[Black "Kamsky, Gata"]
[WhiteFideId "14120828"]
[BlackFideId "2000024"]
[WhiteElo "2723"]
[BlackElo "2666"]
[Result "1-0"]
[Round "04"]
[TimeControl "180+1"]
[Date "2022.11.22"]
[WhiteClock "0:00:21"]
[BlackClock "0:00:50"]

1. e4 {[%clk 0:02:56]}  c6 {[%clk 0:02:57]} 2. d4 {[%clk 0:02:47]}  d5 {[%clk 0:02:56]} 3. Nc3 {[%clk 0:02:48]}  g6 {[%clk 0:02:52]} 4. Bf4 {[%clk 0:02:47]}  Bg7 {[%clk 0:02:50]} 5. Qd2 {[%clk 0:02:47]}  dxe4 {[%clk 0:02:45]} 6. Nxe4 {[%clk 0:02:43]}  Qxd4 {[%clk 0:02:35]} 7. Qxd4 {[%clk 0:02:42]}  Bxd4 {[%clk 0:02:34]} 8. O-O-O {[%clk 0:02:36]}  Bg7 {[%clk 0:02:31]} 9. Re1 {[%clk 0:02:33]}  Nd7 {[%clk 0:02:24]} 10. Bc4 {[%clk 0:02:25]}  Kf8 {[%clk 0:02:15]} 11. Nf3 {[%clk 0:02:18]}  Ngf6 {[%clk 0:02:10]} 12. Nxf6 {[%clk 0:00:27]}  Nxf6 {[%clk 0:02:06]} 13. Be5 {[%clk 0:00:25]}  e6 {[%clk 0:01:32]} 14. Bd6+ {[%clk 0:00:21]}  Kg8 {[%clk 0:01:27]} 15. Bb3 {[%clk 0:00:22]}  b5 {[%clk 0:01:15]} 16. Ne5 {[%clk 0:00:21]}  Bb7 {[%clk 0:01:13]} 17. Nxf7 {[%clk 0:00:21]}  Nd5 {[%clk 0:00:50]} 18. Nxh8 {[%clk 0:00:21]} 1-0


[Site "https://www.chess.com"]

[Event "Titled Tuesday Blitz November 22 Late 2022"]
[White "Brown, Andrew"]
[Black "Tomaszewski, Kacper"]
[WhiteFideId "3206513"]
[BlackFideId "1127373"]
[WhiteElo "2245"]
[BlackElo "2211"]
[Result "1/2-1/2"]
[Round "04"]
[TimeControl "180+1"]
[Date "2022.11.23"]
[WhiteClock "0:00:05"]
[BlackClock "0:00:04"]

1. d4 {[%clk 0:02:57]}  d6 {[%clk 0:02:59]} 2. c4 {[%clk 0:02:57]}  e5 {[%clk 0:02:56]} 3. dxe5 {[%clk 0:02:55]}  dxe5 {[%clk 0:02:56]} 4. Qxd8+ {[%clk 0:02:55]}  Kxd8 {[%clk 0:02:57]} 5. Nc3 {[%clk 0:02:55]}  c6 {[%clk 0:02:57]} 6. e4 {[%clk 0:02:54]}  Kc7 {[%clk 0:02:55]} 7. f4 {[%clk 0:02:54]}  Bd6 {[%clk 0:02:43]} 8. Nf3 {[%clk 0:02:51]}  Nd7 {[%clk 0:02:40]} 9. g3 {[%clk 0:02:29]}  Ngf6 {[%clk 0:02:38]} 10. Bd3 {[%clk 0:02:00]}  Re8 {[%clk 0:02:37]} 11. f5 {[%clk 0:01:44]}  Nc5 {[%clk 0:02:33]} 12. Bc2 {[%clk 0:01:43]}  a5 {[%clk 0:02:33]} 13. Be3 {[%clk 0:01:40]}  Na6 {[%clk 0:02:32]} 14. O-O-O {[%clk 0:01:37]}  Bc5 {[%clk 0:02:31]} 15. Rhe1 {[%clk 0:01:23]}  Ng4 {[%clk 0:02:26]} 16. Bxc5 {[%clk 0:01:12]}  Nxc5 {[%clk 0:02:26]} 17. h3 {[%clk 0:01:09]}  Nf6 {[%clk 0:02:16]} 18. g4 {[%clk 0:01:08]}  Bd7 {[%clk 0:02:10]} 19. b3 {[%clk 0:00:48]}  Rad8 {[%clk 0:02:06]} 20. Kb2 {[%clk 0:00:47]}  Bc8 {[%clk 0:02:04]} 21. a3 {[%clk 0:00:46]}  Rxd1 {[%clk 0:01:52]} 22. Rxd1 {[%clk 0:00:47]}  Ncd7 {[%clk 0:01:51]} 23. b4 {[%clk 0:00:45]}  axb4 {[%clk 0:01:50]} 24. axb4 {[%clk 0:00:46]}  Nb6 {[%clk 0:01:45]} 25. Bb3 {[%clk 0:00:43]}  Re7 {[%clk 0:01:36]} 26. c5 {[%clk 0:00:38]}  Nbd7 {[%clk 0:01:33]} 27. Ng5 {[%clk 0:00:36]}  h5 {[%clk 0:01:25]} 28. gxh5 {[%clk 0:00:32]}  Nxh5 {[%clk 0:01:25]} 29. Nxf7 {[%clk 0:00:32]}  Nf4 {[%clk 0:01:18]} 30. h4 {[%clk 0:00:29]}  Nf6 {[%clk 0:01:15]} 31. Nd6 {[%clk 0:00:28]}  Ng2 {[%clk 0:01:08]} 32. Na4 {[%clk 0:00:22]}  Nxh4 {[%clk 0:01:06]} 33. Nb6 {[%clk 0:00:19]}  Bd7 {[%clk 0:01:05]} 34. Ra1 {[%clk 0:00:07]}  g6 {[%clk 0:01:04]} 35. Ra8 {[%clk 0:00:07]}  gxf5 {[%clk 0:01:00]} 36. Rh8 {[%clk 0:00:07]}  Ne8 {[%clk 0:00:52]} 37. Rxh4 {[%clk 0:00:06]}  Nxd6 {[%clk 0:00:50]} 38. Na8+ {[%clk 0:00:06]}  Kb8 {[%clk 0:00:45]} 39. cxd6 {[%clk 0:00:06]}  Rg7 {[%clk 0:00:38]} 40. Nb6 {[%clk 0:00:07]}  fxe4 {[%clk 0:00:35]} 41. Rxe4 {[%clk 0:00:04]}  Ka7 {[%clk 0:00:32]} 42. Nxd7 {[%clk 0:00:04]}  Rxd7 {[%clk 0:00:32]} 43. Rxe5 {[%clk 0:00:04]}  Rxd6 {[%clk 0:00:32]} 44. Kc3 {[%clk 0:00:05]}  Rh6 {[%clk 0:00:31]} 45. Bc4 {[%clk 0:00:05]}  Kb6 {[%clk 0:00:31]} 46. Bd3 {[%clk 0:00:05]}  Rh3 {[%clk 0:00:32]} 47. Kd4 {[%clk 0:00:03]}  Rh4+ {[%clk 0:00:32]} 48. Be4 {[%clk 0:00:04]}  Rf4 {[%clk 0:00:29]} 49. Re7 {[%clk 0:00:03]}  Rh4 {[%clk 0:00:28]} 50. Ke5 {[%clk 0:00:03]}  Rh5+ {[%clk 0:00:25]} 51. Kd4 {[%clk 0:00:04]}  Rh4 {[%clk 0:00:25]} 52. Kd3 {[%clk 0:00:04]}  Rh2 {[%clk 0:00:24]} 53. Kc4 {[%clk 0:00:04]}  Rh3 {[%clk 0:00:23]} 54. Re6 {[%clk 0:00:03]}  Rh5 {[%clk 0:00:22]} 55. Kc3 {[%clk 0:00:03]}  Rg5 {[%clk 0:00:22]} 56. Kb3 {[%clk 0:00:03]}  Rg3+ {[%clk 0:00:22]} 57. Ka4 {[%clk 0:00:03]}  Re3 {[%clk 0:00:22]} 58. b5 {[%clk 0:00:03]}  Rc3 {[%clk 0:00:16]} 59. Kb4 {[%clk 0:00:02]}  Rc1 {[%clk 0:00:16]} 60. Kb3 {[%clk 0:00:01]}  Kxb5 {[%clk 0:00:15]} 61. Kb2 {[%clk 0:00:02]}  Rc5 {[%clk 0:00:15]} 62. Re7 {[%clk 0:00:02]}  Kb6 {[%clk 0:00:15]} 63. Bd3 {[%clk 0:00:02]}  Rg5 {[%clk 0:00:15]} 64. Kc3 {[%clk 0:00:03]}  Rg3 {[%clk 0:00:15]} 65. Kd4 {[%clk 0:00:03]}  Rg4+ {[%clk 0:00:15]} 66. Be4 {[%clk 0:00:03]}  Rg1 {[%clk 0:00:14]} 67. Ke5 {[%clk 0:00:04]}  Rc1 {[%clk 0:00:14]} 68. Bf5 {[%clk 0:00:04]}  Re1+ {[%clk 0:00:11]} 69. Be4 {[%clk 0:00:05]}  Kc5 {[%clk 0:00:09]} 70. Rxb7 {[%clk 0:00:04]}  Kc4 {[%clk 0:00:08]} 71. Rc7 {[%clk 0:00:05]}  c5 {[%clk 0:00:08]} 72. Kf4 {[%clk 0:00:05]}  Kb4 {[%clk 0:00:07]} 73. Kf3 {[%clk 0:00:05]}  c4 {[%clk 0:00:07]} 74. Bd5 {[%clk 0:00:05]}  c3 {[%clk 0:00:07]} 75. Rc4+ {[%clk 0:00:05]}  Kb5 {[%clk 0:00:03]} 76. Rxc3 {[%clk 0:00:06]}  Rh1 {[%clk 0:00:03]} 77. Be4 {[%clk 0:00:06]}  Rh3+ {[%clk 0:00:03]} 78. Kf4 {[%clk 0:00:05]}  Rxc3 {[%clk 0:00:04]} 79. Kg5 {[%clk 0:00:04]}  Kb4 {[%clk 0:00:05]} 80. Bg6 {[%clk 0:00:04]}  Rc5+ {[%clk 0:00:06]} 81. Kh6 {[%clk 0:00:05]}  Kc3 {[%clk 0:00:07]} 82. Kg7 {[%clk 0:00:05]}  Kd4 {[%clk 0:00:08]} 83. Kh8 {[%clk 0:00:05]}  Re5 {[%clk 0:00:09]} 84. Bh7 {[%clk 0:00:06]}  Ke3 {[%clk 0:00:09]} 85. Bg8 {[%clk 0:00:06]}  Kf4 {[%clk 0:00:10]} 86. Bh7 {[%clk 0:00:07]}  Kg5 {[%clk 0:00:11]} 87. Bg8 {[%clk 0:00:08]}  Kf6 {[%clk 0:00:11]} 88. Bh7 {[%clk 0:00:08]}  Re8+ {[%clk 0:00:12]} 89. Bg8 {[%clk 0:00:08]}  Rd8 {[%clk 0:00:12]} 90. Kh7 {[%clk 0:00:08]}  Rd7+ {[%clk 0:00:13]} 91. Kh8 {[%clk 0:00:08]}  Rd2 {[%clk 0:00:13]} 92. Bh7 {[%clk 0:00:04]}  Kg5 {[%clk 0:00:13]} 93. Kg7 {[%clk 0:00:02]}  Rd7+ {[%clk 0:00:12]} 94. Kh8 {[%clk 0:00:02]}  Kh6 {[%clk 0:00:13]} 95. Bg8 {[%clk 0:00:02]}  Rg7 {[%clk 0:00:13]} 96. Bd5 {[%clk 0:00:02]}  Rg5 {[%clk 0:00:13]} 97. Bg8 {[%clk 0:00:02]}  Re5 {[%clk 0:00:13]} 98. Bf7 {[%clk 0:00:02]}  Re7 {[%clk 0:00:12]} 99. Bg8 {[%clk 0:00:02]}  Rd7 {[%clk 0:00:12]} 100. Be6 {[%clk 0:00:02]}  Rh7+ {[%clk 0:00:12]} 101. Kg8 {[%clk 0:00:02]}  Re7 {[%clk 0:00:13]} 102. Bf7 {[%clk 0:00:03]}  Ra7 {[%clk 0:00:12]} 103. Kf8 {[%clk 0:00:02]}  Kg5 {[%clk 0:00:11]} 104. Kg8 {[%clk 0:00:03]}  Kf6 {[%clk 0:00:12]} 105. Bd5 {[%clk 0:00:03]}  Rd7 {[%clk 0:00:11]} 106. Bc4 {[%clk 0:00:02]}  Rd8+ {[%clk 0:00:11]} 107. Kh7 {[%clk 0:00:03]}  Rd4 {[%clk 0:00:09]} 108. Bb3 {[%clk 0:00:03]}  Rb4 {[%clk 0:00:09]} 109. Bd5 {[%clk 0:00:03]}  Rb5 {[%clk 0:00:09]} 110. Bc4 {[%clk 0:00:03]}  Rb7+ {[%clk 0:00:09]} 111. Kh8 {[%clk 0:00:03]}  Rg7 {[%clk 0:00:09]} 112. Bg8 {[%clk 0:00:03]}  Rg5 {[%clk 0:00:09]} 113. Bh7 {[%clk 0:00:02]}  Rh5 {[%clk 0:00:08]} 114. Kg8 {[%clk 0:00:02]}  Rh1 {[%clk 0:00:08]} 115. Bd3 {[%clk 0:00:02]}  Rd1 {[%clk 0:00:08]} 116. Bc4 {[%clk 0:00:03]}  Rd8+ {[%clk 0:00:07]} 117. Kh7 {[%clk 0:00:03]}  Rf8 {[%clk 0:00:06]} 118. Bb3 {[%clk 0:00:03]}  Kg5 {[%clk 0:00:06]} 119. Kg7 {[%clk 0:00:03]}  Rf6 {[%clk 0:00:06]} 120. Kh7 {[%clk 0:00:04]}  Rb6 {[%clk 0:00:05]} 121. Bc4 {[%clk 0:00:04]}  Rb7+ {[%clk 0:00:06]} 122. Kh8 {[%clk 0:00:03]}  Kg6 {[%clk 0:00:06]} 123. Bd3+ {[%clk 0:00:04]}  Kf6 {[%clk 0:00:06]} 124. Bc4 {[%clk 0:00:04]}  Rc7 {[%clk 0:00:05]} 125. Bd5 {[%clk 0:00:04]}  Rc8+ {[%clk 0:00:05]} 126. Kh7 {[%clk 0:00:04]}  Rd8 {[%clk 0:00:04]} 127. Bc4 {[%clk 0:00:05]} 1/2-1/2


[Site "https://www.chess.com"]

[Event "Titled Tuesday Blitz November 22 Late 2022"]
[White "Castillo Pena, Patricia Evarista"]
[Black "Sztokbant, Bernardo Vainzoff"]
[WhiteFideId "6412106"]
[BlackFideId "2115956"]
[WhiteElo "1919"]
[BlackElo "2228"]
[Result "0-1"]
[Round "04"]
[TimeControl "180+1"]
[Date "2022.11.23"]
[WhiteClock "0:00:13"]
[BlackClock "0:02:10"]

1. d4 {[%clk 0:03:00]}  Nf6 {[%clk 0:03:00]} 2. Nf3 {[%clk 0:02:57]}  e6 {[%clk 0:03:00]} 3. e3 {[%clk 0:02:56]}  b6 {[%clk 0:02:59]} 4. Bd3 {[%clk 0:02:56]}  Bb7 {[%clk 0:02:59]} 5. Nbd2 {[%clk 0:02:54]}  d5 {[%clk 0:03:00]} 6. b3 {[%clk 0:02:53]}  Bd6 {[%clk 0:03:00]} 7. Bb2 {[%clk 0:02:53]}  Nbd7 {[%clk 0:03:00]} 8. O-O {[%clk 0:02:54]}  O-O {[%clk 0:03:01]} 9. Qe2 {[%clk 0:02:53]}  c5 {[%clk 0:03:01]} 10. Ne5 {[%clk 0:02:53]}  Rc8 {[%clk 0:02:56]} 11. c4 {[%clk 0:02:50]}  dxc4 {[%clk 0:02:54]} 12. bxc4 {[%clk 0:02:50]}  cxd4 {[%clk 0:02:54]} 13. exd4 {[%clk 0:02:50]}  Qe7 {[%clk 0:02:51]} 14. Rfd1 {[%clk 0:02:48]}  Rfd8 {[%clk 0:02:50]} 15. Rac1 {[%clk 0:02:47]}  Rc7 {[%clk 0:02:45]} 16. f4 {[%clk 0:02:12]}  Ba3 {[%clk 0:02:44]} 17. Bxa3 {[%clk 0:02:08]}  Qxa3 {[%clk 0:02:45]} 18. Bb1 {[%clk 0:02:00]}  Nf8 {[%clk 0:02:41]} 19. Ndf3 {[%clk 0:01:56]}  Bxf3 {[%clk 0:02:38]} 20. Qxf3 {[%clk 0:01:49]}  Qxf3 {[%clk 0:02:34]} 21. Nxf3 {[%clk 0:01:49]}  Rdc8 {[%clk 0:02:29]} 22. Bd3 {[%clk 0:01:46]}  Ng6 {[%clk 0:02:27]} 23. g3 {[%clk 0:01:45]}  Nd5 {[%clk 0:02:26]} 24. Kf2 {[%clk 0:01:39]}  Nb4 {[%clk 0:02:26]} 25. Bb1 {[%clk 0:01:39]}  Rxc4 {[%clk 0:02:25]} 26. Rxc4 {[%clk 0:01:36]}  Rxc4 {[%clk 0:02:26]} 27. a3 {[%clk 0:01:34]}  Nd5 {[%clk 0:02:25]} 28. Bd3 {[%clk 0:01:29]}  Rc3 {[%clk 0:02:24]} 29. Be4 {[%clk 0:01:28]}  Nge7 {[%clk 0:02:18]} 30. Ne5 {[%clk 0:01:17]}  f6 {[%clk 0:02:18]} 31. Nd3 {[%clk 0:00:56]}  Rxa3 {[%clk 0:02:18]} 32. Rc1 {[%clk 0:00:53]}  Rc3 {[%clk 0:02:17]} 33. Bxd5 {[%clk 0:00:48]}  Nxd5 {[%clk 0:02:16]} 34. Rxc3 {[%clk 0:00:44]}  Nxc3 {[%clk 0:02:17]} 35. Ke3 {[%clk 0:00:37]}  Kf7 {[%clk 0:02:17]} 36. g4 {[%clk 0:00:36]}  Ke7 {[%clk 0:02:17]} 37. Nb4 {[%clk 0:00:34]}  Nd5+ {[%clk 0:02:17]} 38. Nxd5+ {[%clk 0:00:33]}  exd5 {[%clk 0:02:18]} 39. Kd3 {[%clk 0:00:33]}  Kd6 {[%clk 0:02:13]} 40. Kc3 {[%clk 0:00:33]}  Kc6 {[%clk 0:02:13]} 41. Kb4 {[%clk 0:00:32]}  a5+ {[%clk 0:02:13]} 42. Ka4 {[%clk 0:00:32]}  g6 {[%clk 0:02:10]} 43. h4 {[%clk 0:00:31]}  Kd6 {[%clk 0:02:10]} 44. Kb5 {[%clk 0:00:30]}  Ke6 {[%clk 0:02:08]} 45. Ka4 {[%clk 0:00:25]}  h5 {[%clk 0:02:08]} 46. f5+ {[%clk 0:00:20]}  gxf5 {[%clk 0:02:09]} 47. gxh5 {[%clk 0:00:20]}  Kf7 {[%clk 0:02:09]} 48. Kb5 {[%clk 0:00:19]}  f4 {[%clk 0:02:09]} 49. Kc6 {[%clk 0:00:18]}  a4 {[%clk 0:02:09]} 50. Kxd5 {[%clk 0:00:14]}  a3 {[%clk 0:02:10]} 51. Kd6 {[%clk 0:00:13]}  f3 {[%clk 0:02:10]} 52. d5 {[%clk 0:00:13]}  f2 {[%clk 0:02:10]} 0-1


[Site "https://www.chess.com"]

[Event "Titled Tuesday Blitz November 22 Late 2022"]
[White "Chigaev, Maksim"]
[Black "Cardoso Cardoso, Jose Gabriel"]
[WhiteFideId "4108116"]
[BlackFideId "4430492"]
[WhiteElo "2541"]
[BlackElo "2484"]
[Result "1-0"]
[Round "04"]
[TimeControl "180+1"]
[Date "2022.11.22"]
[WhiteClock "0:00:14"]
[BlackClock "0:00:01"]

1. c4 {[%clk 0:03:00]}  e6 {[%clk 0:02:58]} 2. g3 {[%clk 0:03:00]}  d5 {[%clk 0:02:58]} 3. Bg2 {[%clk 0:03:01]}  Nf6 {[%clk 0:02:58]} 4. Nf3 {[%clk 0:03:01]}  Be7 {[%clk 0:02:55]} 5. O-O {[%clk 0:03:01]}  d4 {[%clk 0:02:52]} 6. e3 {[%clk 0:02:52]}  Nc6 {[%clk 0:02:48]} 7. exd4 {[%clk 0:02:41]}  Nxd4 {[%clk 0:02:47]} 8. Nc3 {[%clk 0:02:39]}  O-O {[%clk 0:02:45]} 9. d3 {[%clk 0:02:37]}  c5 {[%clk 0:02:19]} 10. Nxd4 {[%clk 0:02:13]}  cxd4 {[%clk 0:02:08]} 11. Na4 {[%clk 0:02:09]}  e5 {[%clk 0:01:59]} 12. Re1 {[%clk 0:02:08]}  Qc7 {[%clk 0:01:56]} 13. Bg5 {[%clk 0:01:51]}  h6 {[%clk 0:01:51]} 14. Bxf6 {[%clk 0:01:50]}  Bxf6 {[%clk 0:01:52]} 15. b4 {[%clk 0:01:50]}  Bd7 {[%clk 0:01:31]} 16. Nc5 {[%clk 0:01:22]}  Bc6 {[%clk 0:01:29]} 17. Bxc6 {[%clk 0:01:15]}  Qxc6 {[%clk 0:01:24]} 18. Qa4 {[%clk 0:01:10]}  Qf3 {[%clk 0:01:16]} 19. Rad1 {[%clk 0:01:02]}  b6 {[%clk 0:00:56]} 20. Ne4 {[%clk 0:00:53]}  Be7 {[%clk 0:00:47]} 21. Qb3 {[%clk 0:00:39]}  Rac8 {[%clk 0:00:30]} 22. a3 {[%clk 0:00:36]}  Kh7 {[%clk 0:00:26]} 23. Qc2 {[%clk 0:00:33]}  Qh5 {[%clk 0:00:21]} 24. Qa4 {[%clk 0:00:18]}  Rc7 {[%clk 0:00:18]} 25. Nd2 {[%clk 0:00:18]}  Bd6 {[%clk 0:00:13]} 26. Qa6 {[%clk 0:00:15]}  Rd8 {[%clk 0:00:10]} 27. c5 {[%clk 0:00:13]}  bxc5 {[%clk 0:00:09]} 28. Nc4 {[%clk 0:00:13]}  Qg6 {[%clk 0:00:07]} 29. b5 {[%clk 0:00:12]}  Bf8 {[%clk 0:00:01]} 30. Qxg6+ {[%clk 0:00:12]}  fxg6 {[%clk 0:00:02]} 31. Rxe5 {[%clk 0:00:12]}  Rb8 {[%clk 0:00:03]} 32. a4 {[%clk 0:00:12]}  a6 {[%clk 0:00:03]} 33. b6 {[%clk 0:00:13]}  Rc6 {[%clk 0:00:03]} 34. a5 {[%clk 0:00:14]}  Rbc8 {[%clk 0:00:02]} 35. Rde1 {[%clk 0:00:14]}  g5 {[%clk 0:00:02]} 36. Re8 {[%clk 0:00:13]}  Kg6 {[%clk 0:00:01]} 37. b7 {[%clk 0:00:13]}  Rxe8 {[%clk 0:00:01]} 38. Rxe8 {[%clk 0:00:14]} 1-0


[Site "https://www.chess.com"]